bitfinex/quotes_ETHUSD_20240702
["timestamp","ask_amount","ask_price","bid_price","bid_amount"]
[1719940409451,0.50665613,3418.2,3417.8,3.848057]
[1719940409658,0.50665613,3418.1,3417.8,3.848057]
[1719940409863,0.50665613,3418.0,3417.8,2.92585]
[1719940410084,2.4378,3418.3,3417.8,2.92585]
[1719940410284,0.50665633,3418.2,3417.8,2.92585]
[1719940410483,0.50665633,3418.1,3417.8,2.92585]
[1719940410699,0.50665633,3418.0,3417.8,2.92585]
[1719940410900,2.4378,3418.3,3417.8,2.92585]
[1719940411056,0.50665623,3418.2,3417.8,2.92585]
[1719940411256,2.4378,3418.3,3417.8,2.92585]
[1719940411257,0.50665623,3418.1,3417.8,2.92585]
[1719940411456,0.50665623,3418.0,3417.8,2.92585]
[1719940411675,0.50665623,3418.2,3417.8,2.92585]
[1719940411877,0.50665627,3418.1,3417.6,2.92602]
[1719940412102,0.50665627,3418.0,3417.4,2.92617]
[1719940412313,2.92554,3418.2,3417.5,0.592617]
[1719940412459,0.50669905,3417.9,3417.5,0.592617]
[1719940412657,6.41223,3418.3,3417.5,0.592617]
[1719940412658,2.9256,3418.1,3417.5,0.592617]
[1719940412886,2.9256,3418.1,3417.3,5.92623]
[1719940412887,2.4582,3417.9,3417.3,5.92623]
[1719940413093,0.50672617,3417.8,3417.3,5.92623]
[1719940413289,2.4582,3417.9,3417.4,2.92618]
[1719940413516,0.50670946,3417.8,3417.4,3.916334]
[1719940413796,2.4582,3417.9,3417.4,3.916334]
[1719940414093,0.5067059,3417.8,3417.4,3.916334]
[1719940414306,2.4582,3417.9,3417.4,3.916334]
[1719940414806,5.2403,3418.1,3417.4,3.916334]
[1719940415016,5.2403,3418.1,3417.5,0.79630809]
[1719940415166,0.50669607,3418.0,3417.5,0.79630809]
[1719940415506,0.50669545,3417.9,3417.5,0.79630809]
[1719940415713,5.2403,3418.1,3417.5,0.79630809]
[1719940416021,0.50669582,3418.0,3417.5,0.79630809]
[1719940416310,3.27154382,3419.4,3417.6,7.97064181]
[1719940416311,5.30236,3418.4,3417.6,7.97064181]
[1719940416467,0.50667864,3418.3,3417.6,7.97064181]
[1719940416664,0.50667864,3418.2,3417.8,2.2776]
[1719940416867,0.50667864,3418.1,3417.8,2.33611018]
[1719940417067,0.50667864,3418.0,3417.8,2.33611018]
[1719940417327,2.92526,3418.5,3417.8,2.33611018]
[1719940417496,0.50667744,3418.4,3417.8,3.06969762]
[1719940417693,0.50667744,3418.3,3417.8,3.06969762]
[1719940417896,0.50667744,3418.4,3417.8,3.06969762]
[1719940418101,0.50667744,3418.3,3417.8,3.06969762]
[1719940418303,2.92526,3418.5,3417.8,5.99554762]
[1719940418502,0.50667979,3418.4,3417.8,5.99554762]
[1719940419825,0.50667979,3418.4,3417.8,3.71794762]
[1719940420214,0.50667979,3418.4,3417.9,0.02888926]
[1719940421602,0.50667106,3418.3,3417.9,0.02888926]
[1719940421802,0.50667106,3418.2,3417.9,0.02888926]
[1719940421987,0.50667106,3418.4,3417.9,0.02888926]
[1719940423733,3.43202106,3418.4,3417.9,0.02888926]
[1719940423894,0.50667106,3418.3,3417.9,0.02888926]
[1719940424729,3.97435,3418.4,3417.9,0.02888926]
[1719940424937,0.50667726,3418.2,3417.9,0.02888926]
[1719940425096,0.50667726,3418.1,3417.9,0.02888926]
[1719940425432,0.5066792,3418.0,3417.9,0.02888926]
[1719940425728,3.4323592,3418.0,3417.3,5.92628]
[1719940425928,2.92568,3418.0,3417.9,0.028901]
[1719940426104,2.92568,3418.0,3417.3,5.92628]
[1719940426105,3.43239541,3418.0,3417.3,5.92628]
[1719940426429,0.50671205,3417.9,3417.3,5.92628]
[1719940426600,0.50671205,3417.8,3417.4,1.01912464]
[1719940426801,2.92568,3418.0,3417.4,1.01912464]
[1719940427010,0.50670638,3417.9,3417.4,1.01912464]
[1719940427203,0.50670638,3417.8,3417.4,1.01912464]
[1719940427403,0.50670638,3417.9,3417.5,0.98717246]
[1719940427742,2.92568,3418.0,3417.5,1.01611732]
[1719940427895,5.85143,3418.0,3417.5,1.01611732]
[1719940428303,0.50671491,3417.9,3417.5,1.01611732]
[1719940428733,3.43248491,3417.9,3417.5,0.02894486]
[1719940429032,3.43248491,3417.9,3417.2,5.92636]
[1719940429236,3.43248491,3417.9,3417.6,0.02893683]
[1719940429237,0.50671671,3417.8,3417.6,0.02893683]
[1719940429533,2.92577,3417.9,3417.2,5.92636]
[1719940429735,2.92577,3417.9,3417.7,0.02891941]
[1719940430035,2.92577,3417.9,3417.8,0.02890198]
[1719940430333,3.4325078,3417.9,3417.2,5.92636]
[1719940430499,2.92577,3417.9,3417.8,0.02890198]
[1719940430700,3.43251384,3417.9,3417.2,5.92636]
[1719940430921,2.92577,3417.9,3417.8,0.02890198]
[1719940431121,3.43251056,3417.9,3417.2,5.92636]
[1719940431402,0.50673793,3417.8,3417.3,1.215995]
[1719940431638,0.50673793,3417.7,3417.3,1.24498411]
[1719940431940,0.50673793,3417.6,3417.3,1.24498411]
[1719940432144,2.92577,3417.9,3417.3,1.24498411]
[1719940432297,0.50673742,3417.8,3417.3,1.24498411]
[1719940432501,0.50673742,3417.7,3417.3,1.24498411]
[1719940432816,0.50673742,3417.6,3417.3,1.24498411]
[1719940433130,0.50673742,3417.8,3417.3,1.24498411]
[1719940433336,0.50673902,3417.7,3417.3,1.24498411]
[1719940433638,0.50673902,3417.6,3417.3,1.24498411]
[1719940433937,0.50673902,3417.5,3417.3,1.24498411]
[1719940434242,0.50673902,3417.4,3417.3,1.24498411]
[1719940434856,0.50673902,3417.7,3417.3,1.24498411]
[1719940435017,0.50673902,3417.6,3417.3,0.02898911]
[1719940435217,2.3121,3417.8,3417.2,2.92636]
[1719940435218,0.50673902,3417.7,3417.2,2.92636]
[1719940435444,0.50673902,3417.7,3417.4,0.02897873]
[1719940435645,0.50673902,3417.7,3417.2,2.92636]
[1719940435832,0.50673902,3417.7,3417.5,0.0289613]
[1719940436057,0.50673902,3417.7,3417.2,2.92636]
[1719940436378,0.50673902,3417.7,3417.2,3.842355]
[1719940436600,0.50673902,3417.7,3417.3,0.02899615]
[1719940436889,0.5067364,3417.6,3417.2,3.842355]
[1719940437093,0.5067364,3417.5,3417.4,0.02897873]
[1719940437240,0.5067364,3417.8,3417.3,0.02899615]
[1719940437446,0.5067364,3417.8,3417.3,1.0075945]
[1719940437668,0.5067364,3417.8,3417.4,0.02903978]
[1719940438182,0.5067364,3417.8,3417.5,0.02902236]
[1719940438347,0.5067364,3417.8,3417.3,1.0075945]
[1719940438698,0.5067364,3417.8,3417.4,0.02903978]
[1719940438992,0.5067364,3417.8,3417.3,1.0075945]
[1719940439161,0.5067364,3417.8,3417.5,0.02902236]
[1719940439361,0.5067364,3417.8,3417.3,1.0075945]
[1719940439545,0.5067364,3417.8,3417.6,0.02900493]
[1719940439750,0.5067364,3417.8,3417.3,1.0075945]
[1719940440071,0.50672768,3417.7,3417.4,0.81996623]
[1719940440391,0.50672768,3417.6,3417.4,0.81996623]
[1719940440546,0.50671798,3417.6,3417.4,0.81996623]
[1719940440747,2.92577,3417.9,3417.4,0.81996623]
[1719940440946,0.50671973,3417.8,3417.4,0.81996623]
[1719940441158,0.50671973,3417.7,3417.4,0.81996623]
[1719940441386,0.50671973,3417.6,3417.4,0.81996623]
[1719940441563,2.92577,3417.9,3417.4,0.81996623]
[1719940441878,0.50672017,3417.8,3417.4,0.81996623]
[1719940442093,0.50672017,3417.7,3417.4,0.81996623]
[1719940442458,0.50671501,3417.6,3417.4,0.81996623]
[1719940442773,5.26168,3418.0,3417.4,0.81996623]
[1719940442959,0.5067168,3417.9,3417.4,0.81996623]
[1719940443157,0.5067168,3417.8,3417.4,0.81996623]
[1719940443478,0.50671608,3417.7,3417.4,0.81996623]
[1719940443793,0.50671608,3417.6,3417.4,0.81996623]
[1719940443972,0.50671608,3417.9,3417.4,0.81996623]
[1719940444177,0.50671608,3417.9,3417.4,0.02903978]
[1719940444377,0.50671608,3417.9,3417.3,2.92628]
[1719940444578,0.50671608,3417.9,3417.5,0.02902236]
[1719940444781,0.50671608,3417.9,3417.3,2.92628]
[1719940444980,0.50671608,3417.9,3417.6,0.02900493]
[1719940445281,0.50671608,3417.9,3417.3,2.92628]
[1719940445492,5.26168,3418.0,3417.7,0.02898751]
[1719940445652,0.50672327,3417.9,3417.3,2.92628]
[1719940445852,0.50672327,3417.8,3417.3,2.92628]
[1719940446052,0.50672327,3417.9,3417.4,0.02903978]
[1719940446287,0.50672327,3417.9,3417.3,2.92628]
[1719940446487,0.50672327,3417.9,3417.5,0.02902236]
[1719940446652,0.50672327,3417.9,3417.4,0.02903978]
[1719940446848,0.50672327,3417.9,3417.3,3.842249]
[1719940447084,0.50672327,3417.9,3417.5,0.02902236]
[1719940447301,0.50672327,3417.9,3417.4,0.02903978]
[1719940447472,0.50672327,3417.9,3417.6,0.02900493]
[1719940447679,0.50672327,3417.9,3417.5,0.02902236]
[1719940447851,0.50672327,3417.9,3417.7,0.02898751]
[1719940448058,0.50672327,3417.9,3417.3,2.92628]
[1719940448255,0.50672327,3417.9,3417.8,0.02897008]
[1719940448490,0.50672327,3417.9,3417.4,2.92619]
[1719940448958,0.50672762,3417.8,3417.5,0.02902236]
[1719940449154,0.50672762,3417.7,3417.5,0.02902236]
[1719940449506,0.50672762,3417.6,3417.5,0.02902236]
[1719940449998,0.50672762,3417.9,3417.5,0.02902236]
[1719940450154,8.18743,3418.0,3417.2,2.9263]
[1719940450155,0.50672762,3417.8,3417.2,2.9263]
[1719940450351,8.18743,3418.0,3417.2,2.9263]
[1719940450352,0.50672762,3417.9,3417.3,0.84658207]
[1719940450595,0.50672762,3417.9,3417.3,0.02898207]
[1719940450786,0.50672762,3417.9,3417.3,2.95524207]
[1719940452089,0.50673829,3417.8,3417.3,2.95524207]
[1719940452324,0.50673829,3417.7,3417.3,2.95524207]
[1719940452475,0.50673877,3417.6,3417.4,0.82047421]
[1719940452673,0.50673877,3417.5,3417.4,0.82047421]
[1719940453102,0.50673877,3417.5,3417.4,0.84943416]
[1719940455134,2.92577,3417.9,3417.4,0.84943416]
[1719940455275,0.50674233,3417.5,3417.4,0.84943416]
[1719940455479,0.50674234,3417.5,3417.4,0.84943416]
[1719940456286,0.50674234,3417.5,3417.4,0.02895995]
[1719940456687,0.50674234,3417.5,3417.0,5.85298]
[1719940456907,0.50674234,3417.4,3417.0,5.85298]
[1719940457090,0.50674234,3417.6,3417.0,5.85298]
[1719940457299,0.50674234,3417.6,3417.1,0.922518]
[1719940458321,5.37114,3417.7,3417.1,0.922518]
[1719940458478,0.50676273,3417.5,3417.0,2.92648]
[1719940458678,0.50676273,3417.4,3417.0,2.92648]
[1719940458914,0.50676273,3417.6,3417.0,2.92648]
[1719940459103,0.50676273,3417.5,3417.0,2.92648]
[1719940459299,5.37114,3417.7,3417.0,4.149014]
[1719940459300,0.50676273,3417.6,3417.0,4.149014]
[1719940459504,0.50676273,3417.5,3417.0,4.149014]
[1719940459704,0.50676273,3417.4,3417.0,4.149014]
[1719940459916,0.50676273,3417.3,3417.0,4.149014]
[1719940460122,0.50676273,3417.2,3417.0,4.149014]
[1719940460301,5.37114,3417.7,3417.0,2.92648]
[1719940460502,0.50676594,3417.6,3417.0,2.92648]
[1719940460824,0.50676594,3417.5,3417.0,2.92648]
[1719940461019,0.50676594,3417.4,3417.0,5.85295]
[1719940461236,0.50676594,3417.3,3417.1,0.34049324]
[1719940461529,0.50676594,3417.2,3417.1,0.34049324]
[1719940461732,5.37114,3417.7,3417.1,0.34049324]
[1719940462039,0.50675847,3417.6,3417.1,0.34049324]
[1719940462241,0.50675847,3417.5,3417.1,0.34049324]
[1719940462539,0.50675847,3417.4,3417.1,0.34049324]
[1719940462741,5.37114,3417.7,3417.1,3.26694324]
[1719940462742,0.50675847,3417.3,3417.1,3.26694324]
[1719940462945,0.50675847,3417.3,3417.2,6.20533432]
[1719940463098,2.92569,3418.0,3417.2,10.18062432]
[1719940463303,3.43254528,3417.9,3417.3,1.05211176]
[1719940463503,0.50673528,3417.8,3417.2,5.24869]
[1719940464937,0.50673109,3417.7,3417.2,9.224]
[1719940465137,0.50673109,3417.6,3417.2,9.224]
[1719940465334,0.50672428,3417.5,3417.3,0.9504589]
[1719940465514,0.50672428,3417.4,3417.3,0.9504589]
[1719940465708,0.50672428,3417.8,3417.3,0.9504589]
[1719940465911,0.50672428,3417.7,3417.3,0.0280589]
[1719940466113,0.50672428,3417.6,3417.3,0.0280589]
[1719940466450,0.50672428,3417.5,3417.4,0.02801799]
[1719940466600,0.50672428,3417.8,3417.2,8.175]
[1719940466936,0.50672428,3417.8,3417.3,2.95431542]
[1719940467998,2.4045,3418.1,3417.3,2.95431542]
[1719940467999,0.50672279,3417.7,3417.3,2.95431542]
[1719940468303,5.33014,3418.1,3417.3,2.95431542]
[1719940468304,0.50672279,3417.6,3417.3,2.95431542]
[1719940468516,0.50672279,3417.5,3417.4,1.01744054]
[1719940468718,0.50672279,3417.9,3417.4,1.01744054]
[1719940468932,0.50672279,3417.9,3417.4,1.04544914]
[1719940470242,0.50672279,3417.9,3417.4,0.0280086]
[1719940470552,0.50672279,3417.9,3417.3,2.92628]
[1719940470761,2.3788,3417.8,3417.5,0.02799117]
[1719940470955,0.50672279,3417.7,3417.4,0.0280086]
[1719940471125,0.50672279,3417.7,3417.3,2.92628]
[1719940471126,0.50672279,3417.7,3417.6,0.02797375]
[1719940471326,0.50673092,3417.7,3417.5,0.02799117]
[1719940471538,2.3788,3417.8,3417.6,0.02797375]
[1719940471739,0.50673083,3417.7,3417.6,0.02797375]
[1719940471936,0.50673083,3417.7,3417.3,2.92628]
[1719940472128,2.3788,3417.8,3417.6,0.02797375]
[1719940472454,0.50673126,3417.7,3417.3,2.92628]
[1719940472654,0.50673126,3417.6,3417.4,0.585257]
[1719940472952,0.50673126,3417.5,3417.4,0.585257]
[1719940473262,0.50673126,3417.5,3417.3,2.92626]
[1719940473417,0.50673126,3417.4,3417.3,2.92626]
[1719940473846,0.50673126,3417.9,3417.3,2.92626]
[1719940474032,0.50673126,3417.8,3417.3,2.92626]
[1719940474242,0.50673126,3417.9,3417.3,2.92626]
[1719940474447,0.50674112,3417.8,3417.3,2.92626]
[1719940474629,0.50674112,3417.7,3417.3,2.92626]
[1719940474967,0.50674112,3417.6,3417.3,2.92626]
[1719940475176,0.50674112,3417.5,3417.3,3.79531378]
[1719940475467,0.50674112,3417.9,3417.3,3.79531378]
[1719940475629,0.50674112,3417.8,3417.3,2.92626]
[1719940475953,6.36559,3418.0,3417.3,2.92626]
[1719940475954,0.50674112,3417.7,3417.3,2.92626]
[1719940476112,0.50674112,3417.9,3417.3,2.92626]
[1719940476319,0.50674112,3417.8,3417.3,2.92626]
[1719940476563,0.50674112,3417.7,3417.3,2.92626]
[1719940476753,0.50674112,3417.9,3417.3,2.92626]
[1719940476957,0.50674112,3417.8,3417.3,2.92626]
[1719940477259,0.50674112,3417.8,3417.1,2.92645]
[1719940477260,0.50674112,3417.7,3417.1,2.92638]
[1719940477417,0.50674112,3417.7,3417.2,0.817616]
[1719940477820,0.50675339,3417.6,3417.2,0.817616]
[1719940478019,0.50675339,3417.5,3417.1,2.92638]
[1719940478221,0.50675326,3417.4,3417.1,2.92638]
[1719940478458,0.50675326,3417.3,3417.1,5.85278]
[1719940478679,0.50675326,3417.2,3417.1,2.92638]
[1719940478957,0.50675326,3417.2,3417.1,6.775296]
[1719940479661,0.50675326,3417.2,3417.1,3.848896]
[1719940480462,0.50675326,3417.2,3417.1,3.87692635]
[1719940480959,0.50675499,3417.2,3417.1,3.87692635]
[1719940484168,0.5067542,3417.2,3417.1,3.87692635]
[1719940487421,0.50675749,3417.2,3417.1,2.95441035]
[1719940487936,0.50675749,3417.2,3417.1,0.02803035]
[1719940488357,0.50675749,3417.2,3416.9,2.92658]
[1719940488565,8.21357,3417.6,3417.1,0.02805381]
[1719940488783,0.50678899,3417.5,3417.0,0.02807124]
[1719940489073,0.50678899,3417.4,3417.1,0.02805381]
[1719940489371,0.50678899,3417.3,3416.9,2.92658]
[1719940489550,8.21357,3417.6,3417.2,0.02803638]
[1719940489754,0.50678351,3417.5,3416.9,2.92658]
[1719940489954,0.50678351,3417.4,3417.3,0.02801895]
[1719940490276,0.50679369,3417.4,3417.3,0.02801895]
[1719940490448,0.50679369,3417.4,3416.9,2.92658]
[1719940490649,0.50679369,3417.4,3417.0,1.25062424]
[1719940490856,0.50679005,3417.3,3417.0,1.25062424]
[1719940491072,0.50679005,3417.2,3417.0,0.02807124]
[1719940491289,0.50678251,3417.1,3417.0,0.02807124]
[1719940493810,8.21357,3417.6,3417.0,0.02807124]
[1719940493948,0.50678483,3417.5,3417.0,0.02807124]
[1719940494147,0.50678483,3417.4,3417.0,0.02807124]
[1719940494347,0.50678483,3417.3,3417.0,0.02807124]
[1719940494601,0.50678483,3417.2,3417.0,0.02807124]
[1719940494746,0.50678483,3417.5,3417.0,0.02807124]
[1719940497088,8.21357,3417.6,3417.0,0.02807124]
[1719940497089,0.50678822,3417.4,3417.0,0.02807124]
[1719940497383,0.50678822,3417.3,3417.0,0.02807124]
[1719940497586,2.92621,3417.4,3417.0,0.02807124]
[1719940497790,0.50678822,3417.3,3417.0,0.02807124]
[1719940497963,0.50678822,3417.3,3416.8,2.3232]
[1719940498157,0.50678822,3417.3,3417.1,0.02807965]
[1719940498499,0.50678822,3417.3,3417.2,0.02806222]
[1719940498657,0.50678822,3417.3,3416.8,2.3232]
[1719940498857,0.50678822,3417.3,3416.9,0.02811451]
[1719940500272,2.92621,3417.4,3416.9,0.02811451]
[1719940500449,0.50681161,3417.3,3416.9,0.02811451]
[1719940501166,0.50681161,3417.2,3416.9,0.02811451]
[1719940501365,0.50681161,3417.1,3416.9,0.02811451]
[1719940501688,2.92611,3417.5,3417.0,0.69569075]
[1719940501878,2.92611,3417.5,3417.1,0.0281313]
[1719940501879,0.50677943,3417.4,3417.1,0.0281313]
[1719940502076,0.50677943,3417.3,3416.8,5.879793]
[1719940502287,2.92611,3417.5,3416.9,0.02816617]
[1719940502288,0.50677943,3417.2,3416.9,0.02816617]
[1719940502455,5.26289,3417.3,3416.9,0.02816617]
[1719940502654,5.26289,3417.3,3416.6,2.92687]
[1719940502854,0.50681978,3417.2,3416.7,0.02820808]
[1719940503095,5.26289,3417.3,3416.7,0.02820808]
[1719940503258,0.50681824,3417.1,3416.7,0.02820808]
[1719940503461,0.50681824,3417.0,3416.8,0.71821906]
[1719940503694,5.26289,3417.3,3416.9,0.02815442]
[1719940503900,0.50680549,3417.2,3416.9,0.02815442]
[1719940504075,0.50680549,3417.1,3416.9,0.02815442]
[1719940504286,0.50680549,3417.0,3416.9,0.02815442]
[1719940505512,0.50680549,3417.0,3416.9,0.79305677]
[1719940505823,0.50680057,3417.0,3416.9,0.79305677]
[1719940506882,0.50680057,3417.0,3416.9,3.71967677]
[1719940508686,0.50680057,3417.0,3416.9,6.64629677]
[1719940509020,7.48,3417.7,3417.1,2.92642]
[1719940509188,0.50677985,3417.6,3417.1,2.92642]
[1719940509371,7.48,3417.7,3417.1,2.92642]
[1719940509372,0.50677985,3417.5,3417.1,3.99959158]
[1719940509573,0.50677985,3417.4,3417.2,0.02809743]
[1719940509877,0.50677985,3417.3,3417.2,0.02809743]
[1719940512117,2.4188,3417.5,3417.2,0.02809743]
[1719940512275,0.50677357,3417.3,3417.2,0.02809743]
[1719940513978,0.50677357,3417.3,3417.2,2.95446743]
[1719940515279,9.8988,3417.7,3417.2,0.02809743]
[1719940515621,0.5067699,3417.6,3417.2,0.02809743]
[1719940515827,0.50678394,3417.5,3417.0,2.92646]
[1719940516030,0.50678394,3417.5,3416.9,2.92658]
[1719940516031,0.50678394,3417.4,3417.3,0.02808]
[1719940516178,0.50678394,3417.6,3417.3,0.02808]
[1719940516378,0.50678394,3417.6,3417.1,2.92645]
[1719940516896,0.50678394,3417.6,3417.2,0.02807077]
[1719940518505,0.50676924,3417.5,3417.2,0.02807077]
[1719940518824,0.50676754,3417.4,3417.2,0.02807077]
[1719940518978,0.50676754,3417.3,3417.2,0.02807077]
[1719940519180,0.50676754,3417.3,3417.2,2.95444077]
[1719940520415,0.50676754,3417.3,3417.2,2.95444077]
[1719940521588,2.4188,3417.7,3417.2,2.95444077]
[1719940521918,0.50675643,3417.6,3417.2,2.95444077]
[1719940523018,0.50675643,3417.6,3417.2,0.02807077]
[1719940523387,1.40629066,3417.5,3417.2,0.02807077]
[1719940523583,0.50675643,3417.4,3417.2,0.02807077]
[1719940523789,0.50675643,3417.6,3417.2,0.02807077]
[1719940524013,1.91303462,3417.6,3417.2,2.95444077]
[1719940524286,0.50675643,3417.5,3417.2,2.95444077]
[1719940524518,0.50675643,3417.4,3417.2,2.95444077]
[1719940524839,2.4188,3417.7,3417.2,2.95444077]
[1719940525129,1.9129224,3417.6,3417.2,2.95444077]
[1719940525333,2.4188,3417.7,3417.2,2.95444077]
[1719940525334,0.50674767,3417.5,3417.2,2.95444077]
[1719940525504,0.50674767,3417.6,3417.2,2.95444077]
[1719940528215,0.50675543,3417.5,3417.2,2.95444077]
[1719940528529,2.4188,3417.7,3417.2,2.95444077]
[1719940528688,0.5067456,3417.4,3417.2,2.95444077]
[1719940528899,0.5067456,3417.3,3417.2,2.95444077]
[1719940529343,0.5067456,3417.6,3417.2,2.95444077]
[1719940529645,0.5067456,3417.5,3417.2,2.95444077]
[1719940529930,0.5067456,3417.4,3417.2,2.95444077]
[1719940530106,0.5067456,3417.3,3417.2,2.95444077]
[1719940531411,0.506745,3417.3,3417.2,2.95444077]
[1719940534404,2.4188,3417.7,3417.3,2.92627]
[1719940534738,1.91294426,3417.6,3417.4,0.02902526]
[1719940534942,0.50675271,3417.5,3417.3,2.92627]
[1719940535141,0.50675271,3417.6,3417.4,0.02902526]
[1719940535527,0.50675271,3417.6,3417.3,2.92627]
[1719940535734,0.50675271,3417.6,3417.4,0.02902526]
[1719940535952,0.50675271,3417.6,3417.3,2.92627]
[1719940536125,0.50675271,3417.6,3417.5,0.02900659]
[1719940536311,1.91293442,3417.6,3417.3,2.92627]
[1719940536514,0.50675271,3417.5,3417.4,0.02902526]
[1719940536731,0.50675271,3417.5,3417.3,2.92627]
[1719940536955,0.50675271,3417.4,3417.3,2.92627]
[1719940537751,2.4188,3417.7,3417.3,2.92627]
[1719940537924,0.50675583,3417.4,3417.3,2.92627]
[1719940540144,0.50675583,3417.4,3417.3,2.95531393]
[1719940541017,2.4188,3417.7,3417.4,2.92615]
[1719940541251,0.50674168,3417.6,3417.4,2.92615]
[1719940541480,2.4188,3417.7,3417.5,0.02900659]
[1719940541776,0.50674638,3417.6,3417.5,0.02900659]
[1719940544159,1.91290198,3417.6,3417.5,0.02900659]
[1719940544330,1.91291218,3417.6,3417.5,0.02900659]
[1719940544751,1.91291218,3417.6,3417.1,2.9264]
[1719940545072,1.049,3417.8,3417.1,2.9264]
[1719940545073,4.35471218,3417.5,3417.2,2.95542261]
[1719940545253,0.50675491,3417.4,3417.2,2.95542261]
[1719940547278,2.4418,3417.5,3417.2,5.88173261]
[1719940547485,0.50675878,3417.3,3417.2,2.95537261]
[1719940547682,0.50675878,3417.3,3417.2,5.88167261]
[1719940549235,0.50675878,3417.3,3417.2,6.46983987]
[1719940550434,2.3374,3417.7,3417.3,2.92627]
[1719940550834,2.3374,3417.7,3417.4,0.0290504]
[1719940551283,2.3374,3417.7,3417.3,2.92627]
[1719940551580,1.91288437,3417.6,3417.5,0.02903173]
[1719940551882,1.91288437,3417.6,3417.4,0.0290504]
[1719940552031,2.3374,3417.7,3417.5,0.02903173]
[1719940552232,1.91287145,3417.6,3417.5,0.02903173]
[1719940552442,1.91287145,3417.6,3417.3,2.92627]
[1719940552665,2.3374,3417.7,3417.5,0.02903173]
[1719940552846,1.91285339,3417.6,3417.4,0.0290504]
[1719940553047,0.50673537,3417.5,3417.3,2.92627]
[1719940553259,0.50673717,3417.4,3417.3,2.92627]
[1719940553577,1e-08,3417.4,3417.3,12.79481319]
[1719940553790,1.0,3419.9,3418.2,2.92551]
[1719940553791,2.377,3418.7,3418.2,2.92551]
[1719940553954,2.377,3418.7,3418.2,3.97446]
[1719940554141,2.377,3418.7,3418.4,2.92534]
[1719940554342,2.377,3418.7,3418.4,5.85068]
[1719940554566,2.4689,3419.1,3418.4,2.92534]
[1719940554775,2.4689,3419.1,3418.6,2.92517]
[1719940554939,2.4689,3419.1,3418.7,2.92507]
[1719940555289,2.4689,3419.7,3419.0,2.92478]
[1719940555572,5.39316,3419.7,3419.1,0.03986724]
[1719940556758,2.4689,3419.7,3419.1,0.03986724]
[1719940558353,5.39313,3419.7,3419.1,0.03986724]
[1719940559156,6.44213,3419.7,3419.1,0.03986724]
[1719940559989,3.5179,3419.7,3419.1,0.03986724]
[1719940560210,3.5179,3419.7,3418.6,2.3232]
[1719940560211,1.049,3419.4,3418.8,2.925]
[1719940560349,1.049,3419.4,3419.2,0.04368897]
[1719940560555,1.049,3419.4,3418.8,2.925]
[1719940560556,3.97337,3419.6,3418.8,2.925]
[1719940560869,3.97337,3419.6,3418.9,2.96857043]
[1719940561659,2.3785,3420.2,3418.9,0.73792747]
[1719940561859,3.97295,3420.1,3419.3,2.92456]
[1719940562154,2.3785,3420.2,3419.7,2.9242]
[1719940562393,2.92358,3420.5,3419.8,0.04340932]
[1719940562703,3.0,3420.4,3419.8,0.04340932]
[1719940564754,1.049,3420.3,3419.8,0.04340932]
[1719940567576,5.33232,3420.6,3419.8,0.04340932]
[1719940567778,1.049,3420.3,3419.8,0.04340932]
[1719940567965,1.049,3420.4,3419.8,2.96753932]
[1719940574210,3.0,3420.5,3419.8,2.96753932]
[1719940574538,3.0,3420.5,3419.9,2.92405]
[1719940574684,4.049,3420.5,3419.9,2.92405]
[1719940574884,4.049,3420.5,3420.0,0.04317927]
[1719940575321,4.049,3420.5,3419.9,2.92405]
[1719940575619,1.049,3420.3,3420.0,0.04317927]
[1719940575819,1.049,3420.1,3419.5,2.9244]
[1719940578925,1.049,3419.9,3419.3,2.92456]
[1719940579225,2.3639,3420.0,3419.0,2.92482]
[1719940579226,1.049,3419.7,3419.0,2.92482]
[1719940579522,2.9242,3419.8,3419.0,2.92482]
[1719940579523,1.049,3419.5,3419.0,2.92482]
[1719940580385,1.049,3419.5,3419.0,3.77425016]
[1719940581127,1.049,3419.7,3419.0,3.77425016]
[1719940581289,2.92415,3419.8,3419.0,3.77425016]
[1719940581488,2.92415,3419.8,3419.1,2.92474]
[1719940581708,2.92415,3419.8,3419.2,0.80692818]
[1719940582832,2.92415,3419.8,3419.1,2.92474]
[1719940583203,5.84837,3419.8,3419.1,2.92474]
[1719940583428,2.92423,3419.7,3419.1,2.92474]
[1719940583801,2.92423,3419.7,3419.0,0.84943016]
[1719940584001,2.92423,3419.7,3418.8,5.24816]
[1719940584427,3.97323,3419.7,3418.8,5.24816]
[1719940585404,3.97323,3419.7,3419.0,2.92481]
[1719940588224,2.4943,3419.6,3418.9,2.92489]
[1719940588440,1.049,3419.5,3418.9,2.92489]
[1719940588741,1.049,3419.5,3418.5,2.2828]
[1719940588949,7.68243,3420.7,3418.2,2.2828]
[1719940588950,1.049,3419.1,3418.2,2.2828]
[1719940589104,1.049,3418.9,3418.3,2.92535]
[1719940589304,1.049,3418.9,3418.4,0.520815]
[1719940589540,3.97397,3418.9,3417.9,6.25751]
[1719940589744,3.97397,3418.9,3418.1,2.92558]
[1719940590539,6.89896,3418.9,3418.1,2.92558]
[1719940590700,2.925,3418.8,3418.1,2.92558]
[1719940590907,2.925,3418.8,3418.2,0.918309]
[1719940591803,1.049,3418.7,3418.2,0.918309]
[1719940592303,1.049,3418.3,3417.6,2.92596]
[1719940592502,1.049,3418.3,3417.5,2.92606]
[1719940592702,1.049,3418.3,3417.6,0.585222]
[1719940593109,1.049,3418.3,3417.6,3.511202]
[1719940593839,2.92536,3418.4,3417.7,2.92593]
[1719940594743,2.4943,3418.5,3417.7,2.92593]
[1719940595052,5.41962,3418.5,3417.7,2.92593]
[1719940595656,2.92535,3418.4,3417.7,2.92593]
[1719940600069,2.92535,3418.4,3417.5,5.85215]
[1719940600433,2.92535,3418.4,3417.6,2.926]
[1719940600770,5.85076,3418.4,3417.6,3.511204]
[1719940601667,2.92558,3418.2,3417.3,2.92624]
[1719940601880,2.92561,3418.1,3417.3,2.92622]
[1719940602028,2.92561,3418.1,3417.4,0.520902]
[1719940603266,2.92561,3418.1,3417.4,3.447042]
[1719940609340,2.92561,3418.1,3417.4,6.373182]
[1719940609675,2.92561,3418.1,3417.4,3.447042]
[1719940614692,5.85127,3418.1,3417.4,3.447042]
[1719940614890,2.92561,3418.1,3417.5,0.6373362]
[1719940616957,2.4477,3418.0,3417.5,0.6373362]
[1719940617157,5.37339,3418.0,3417.5,0.6373362]
[1719940617971,5.37339,3418.0,3417.4,0.520902]
[1719940619761,2.92577,3417.9,3417.4,0.520902]